Cogmind - Beta 13 @@@ ROGUE MODE // 2024.06.10 @ 12:33:19 Player: Brognold Result: Destroyed by L-41 Fighter with Axe Performance ------------- Evolutions (4) 2000 Regions Visited (9) 1800 Robots Destroyed (68) 340 Value Destroyed (2846) 2846 Prototype IDs (0) 0 Alien Tech Used (0) 0 Bonus (777) 777 TOTAL SCORE: 7763 Bonus ------- Pacifist 200 High Alert Combat Kills 156 Follower Combat Kills 275 Entered Garrisons 200 Friendly Fire -54 Cogmind --------- Core Integrity 0/850 Matter 143/300 Energy 282/290 System Corruption 3% Temperature Hot (218) Movement Treading (240) Ox1 Location -6/Factory Parts ------- > --- POWER (2) -------- Improved Deuterium Engine > --- PROPULSION (4) --- Light Treads Light Treads Improved Medium Treads > --- UTILITY (5) ------ Large Storage Unit Visual Processing Unit Enhanced Optical Array Improved Targeting Computer Medium Reactive Plating > --- WEAPON (4) ------- Flak Gun Enhanced Gauss Cannon > --- INVENTORY (15) --- Improved Titanium Leg Armored Leg Armored Leg Improved Heat Sink Compact Matter Pod (110) Visual Processing Unit Improved Sensor Array Advanced Sensor Array Improved Terrain Scanner Improved Terrain Scan Processor Target Analyzer Core Analyzer System Shield Relay Coupler [Sentry] (25) Mining Laser Peak State ------------ > --- POWER ------------ Improved Deuterium Engine Light Angular Momentum Engine > --- PROPULSION ------- Improved Titanium Leg Armored Leg Armored Leg Armored Leg > --- UTILITY ---------- Improved Heat Sink Large Storage Unit Visual Processing Unit Enhanced Optical Array Improved Light Armor Plating > --- WEAPON ----------- Heavy Laser Heavy Laser Heavy Machine Gun Heavy Machine Gun > --- INVENTORY -------- Improved Deuterium Engine Improved Deuterium Engine Armored Leg Compact Matter Pod Visual Processing Unit Improved Sensor Array Improved Terrain Scanner Improved Terrain Scan Processor Improved Targeting Computer Medium Reactive Plating Relay Coupler [Sentry] Minigun Enhanced Gauss Cannon Enhanced Gauss Cannon Mining Laser [Rating: 65] Favorites ----------- Power Improved Deuterium Engine Engine Improved Deuterium Engine Propulsion Improved Carbon-fiber Leg Treads Light Treads Leg Improved Carbon-fiber Leg Utility Large Storage Unit Device Improved Sensor Array Storage Large Storage Unit Processor Visual Processing Unit Protection Medium Reactive Plating Weapon Enhanced Gauss Cannon Energy Gun Heavy Laser Energy Cannon Heavy Plasma Cannon Ballistic Gun Flak Gun Ballistic Cannon Enhanced Gauss Cannon Launcher Heavy Rocket Launcher Special Weapon Mining Laser Build | -11 -10 -10 -9 -9 -8 -7 -6 -6 -6 ------- Run | Yrd Mat Min Mat Min Mat Fac Fac Gar Fac Slots Evolved 8 | . . . 2 . 2 2 2 . . Power 1 | . . . . . . . 1 . . Propulsion 2 | . . . 1 . . 1 . . . Utility 3 | . . . 1 . 1 1 . . . Weapon 2 | . . . . . 1 . 1 . . Parts Attached 81 | 7 3 . 2 2 9 13 21 . 24 Power 8 | 2 . . . 1 . . 3 . 2 Engine 8 | 2 . . . 1 . . 3 . 2 Core . | . . . . . . . . . . Reactor . | . . . . . . . . . . Propulsion 29 | 2 . . . . 4 5 6 . 12 Treads 7 | 2 . . . . . . . . 5 Leg 22 | . . . . . 4 5 6 . 7 Wheel . | . . . . . . . . . . Hover . | . . . . . . . . . . Flight . | . . . . . . . . . . Utility 15 | 1 3 . 1 . 2 3 3 . 2 Device 4 | . . . . . 2 1 1 . . Storage 3 | 1 2 . . . . . . . . Processor 5 | . 1 . 1 . . 1 1 . 1 Hackware . | . . . . . . . . . . Protection 3 | . . . . . . 1 1 . 1 Artifact . | . . . . . . . . . . Weapon 29 | 2 . . 1 1 3 5 9 . 8 Energy Gun 6 | 1 . . . . 1 . 3 . 1 Energy Cannon 3 | . . . . . . 1 . . 2 Ballistic Gun 14 | 1 . . 1 1 1 3 5 . 2 Ballistic Cannon 4 | . . . . . . . 1 . 3 Launcher 1 | . . . . . . 1 . . . Special Weapon 1 | . . . . . 1 . . . . Impact Weapon . | . . . . . . . . . . Slashing Weapon . | . . . . . . . . . . Piercing Weapon . | . . . . . . . . . . Special Melee Weapon . | . . . . . . . . . . Unidentified Prototypes . | . . . . . . . . . . Parts Lost 22 | . . . . . 2 . 9 . 11 Power 3 | . . . . . . . . . 3 Propulsion 3 | . . . . . . . 2 . 1 Utility 5 | . . . . . . . 3 . 2 Weapon 11 | . . . . . 2 . 4 . 5 Highest Loss Streak 8 | . . . . . 2 . 5 . 8 To Critical Strikes 1 | . . . . . . . 1 . . Average Slot Usage (%) 93 | . 90 100 82 88 94 99 94 100 92 Engine 11 | . 14 14 11 11 9 7 13 13 12 Treads 8 | . 28 28 22 22 3 . . . 10 Leg 15 | . . . . . 21 29 23 26 10 Device 3 | . . . . . 6 7 8 6 . Storage 7 | . 14 14 11 11 9 7 6 6 6 Processor 16 | . 5 14 16 22 18 15 10 13 18 Protection 4 | . . . . . . 6 4 6 5 Energy Gun 5 | . 14 14 6 . 2 . 3 13 6 Energy Cannon 2 | . . . . . . 4 . . 3 Ballistic Gun 11 | . 14 14 15 22 23 15 14 13 2 Ballistic Cannon 4 | . . . . . . . 4 . 10 Naked Turns . | . . . . . . . . . . Heaviest Build 92 | 13 28 28 29 37 42 51 65 61 92 Greatest Support 90 | 40 40 40 40 40 54 74 76 76 90 Greatest Overweight (x) 5 | 2 . . . . 2 . 1 . 5 Average Overweight (x) . | . . . . . . . . . 1 Largest Inventory Capacity 15 | 8 15 15 15 15 15 15 15 15 15 Average Capacity 14 | 7 9 15 15 15 15 15 15 15 15 Most Carried 15 | 4 8 7 11 15 15 15 15 15 15 Average Carried 12 | 1 5 7 8 13 14 14 13 14 12 Final Capacity 15 | 8 15 15 15 15 15 15 15 15 15 Final Carried 15 | 4 7 7 11 15 15 15 15 15 15 Class Distribution -------------------- 28% | Skirmisher 27% | Gunner 26% | Mutant 11% | Scavenger-Tank 6% | Scavenger-Skirmisher Dominant Class ---------------- Mutant | -10/Materials Mutant | -10/Mines Mutant | -9/Materials Mutant | -9/Mines Skirmisher | -8/Materials Skirmisher | -7/Factory Scavenger-Skirmisher | -6/Factory Scavenger-Tank | -6/Garrison Gunner | -6/Factory Resources | -11 -10 -10 -9 -9 -8 -7 -6 -6 -6 ----------- Run | Yrd Mat Min Mat Min Mat Fac Fac Gar Fac Matter Collected 2248 | 193 . . 143 76 204 247 397 435 553 Remotely . | . . . . . . . . . . Salvage Created 2367 | . . . 208 78 308 416 385 203 769 Parts 125 | . . . 11 8 17 27 19 8 35 Haulers Intercepted . | . . . . . . . . . . Recyclers Shooed 6 | . . . . 1 1 2 1 . 1 Parts Field Recycled . | . . . . . . . . . . Retrieved Matter . | . . . . . . . . . . Parts Self-Destructed . | . . . . . . . . . . Prevented . | . . . . . . . . . . Kills | -11 -10 -10 -9 -9 -8 -7 -6 -6 -6 ------- Run | Yrd Mat Min Mat Min Mat Fac Fac Gar Fac Combat Hostiles Destroyed 56 | . . . 6 5 6 12 9 4 14 Guns 31 | . . . 3 5 6 4 6 4 3 Cannons 9 | . . . . . . . 3 . 6 AOE 15 | . . . 3 . . 7 . . 5 Classes Destroyed 13 | . . . 3 . 2 2 1 1 4 Worker 1 | . . . . . . . . . 1 Builder 3 | . . . . . . 1 2 . . Recycler 1 | . . . . . . . . . 1 Operator 1 | . . . . . . . . . 1 Watcher 5 | . . . . . 2 1 . . 2 Swarmer 23 | . . . 3 5 2 4 3 3 3 Grunt 14 | . . . 3 . 3 5 2 . 1 Duelist 3 | . . . . . . . . . 3 Sentry 8 | . . . . . 1 2 2 . 3 Specialist 1 | . . . . . . . . 1 . Hunter 3 | . . . . . . . 1 . 2 Programmer 4 | . . . . . . 1 1 . 2 Zionite 1 | . . . 1 . . . . . . Best Kill Streak 6 | . . . 4 3 4 6 4 3 6 Combat Bots Only 5 | . . . 4 3 3 5 4 3 3 Max Kills in Single Turn 4 | . . . 3 1 1 3 1 1 4 Gunslinging . | . . . . . . . . . . Exploded 3 | . . . 3 . . 2 . . 3 Melee . | . . . . . . . . . . Uniques/NPCs Destroyed . | . . . . . . . . . . Combat | -11 -10 -10 -9 -9 -8 -7 -6 -6 -6 -------- Run | Yrd Mat Min Mat Min Mat Fac Fac Gar Fac Hostile Shots Fired 599 | . . . 10 24 98 88 169 61 149 Missed 191 | . . . 4 3 41 38 45 24 36 Damage Taken 5879 | . . . 144 164 628 602 1518 530 2293 Core 1081 | . . . 50 8 116 57 160 69 621 Absorbed by Shields . | . . . . . . . . . . Ignored by Resistances 116 | . . . . . . . . . 116 Regen/Repaired (Parts) 218 | . . . . . . 100 . . 118 Core Remaining (%) 90 | 100 . 100 . 85 78 91 . . . Volleys Fired 165 | . . . 16 14 21 18 35 13 48 Largest 4 | . . . 2 2 3 3 4 4 4 Hottest 254 | . . . 60 43 106 116 177 198 254 Shots Fired 435 | . . . 32 28 57 52 89 52 125 Gun 334 | . . . 32 28 54 36 72 52 60 Cannon 90 | . . . . . . 8 17 . 65 Launcher 8 | . . . . . . 8 . . . Special 3 | . . . . . 3 . . . . Kinetic 278 | . . . 16 28 41 36 68 26 63 Thermal 103 | . . . . . 3 8 21 26 45 Explosive 8 | . . . . . . 8 . . . Electromagnetic 46 | . . . 16 . 13 . . . 17 Robot Hit Streak 15 | . . . 10 8 7 9 13 15 9 Robot Miss Streak 10 | . . . 2 3 10 5 7 3 8 Penetration Max . | . . . . . . . . . . Secondary Targets 6 | . . . 1 1 2 . . 1 1 Max Gunslinging Chain 1 | . . . 1 1 1 . . 1 1 Shots Hit Robots 258 | . . . 22 19 32 30 60 32 63 Core Hits 171 | . . . 10 7 26 46 36 8 38 Critical Kills 1 | . . . . . . 1 . . . Critical Parts Destroyed 1 | . . . . 1 . . . . . Critical Strikes 16 | . . . . 1 . 1 3 1 10 Burn 3 | . . . . . . . 2 1 . Meltdown 1 | . . . . . . 1 . . . Destroy 1 | . . . . 1 . . . . . Blast 11 | . . . . . . . 1 . 10 Melee Attacks . | . . . . . . . . . . Impact . | . . . . . . . . . . Slashing . | . . . . . . . . . . Piercing . | . . . . . . . . . . Sneak Attacks . | . . . . . . . . . . Combat Hostiles . | . . . . . . . . . . Follow-up Attacks . | . . . . . . . . . . Damage Inflicted 6427 | . . . 319 221 444 1284 1119 493 2547 Guns 3424 | . . . 236 221 444 399 937 493 694 Cannons 1432 | . . . . . . 124 161 . 1147 Explosions 1487 | . . . 83 . . 708 . . 696 Melee . | . . . . . . . . . . Ramming 84 | . . . . . . 53 21 . 10 Kinetic 3049 | . . . 69 221 377 399 752 191 1040 Thermal 1541 | . . . 83 . . 124 346 302 686 Explosive 1265 | . . . . . . 660 . . 605 Electromagnetic 488 | . . . 167 . 67 48 . . 206 Impact . | . . . . . . . . . . Slashing . | . . . . . . . . . . Piercing . | . . . . . . . . . . Highest Corruption 3 | . . . . . . . 2 2 3 Average Corruption 2 | . . . . . . . 1 2 2 Corruption Purged . | . . . . . . . . . . Corruption Blocked . | . . . . . . . . . . Effects 30 | . . . . . . . 1 2 27 Message Errors 6 | . . . . . . . . . 6 Matter Fused 6 | . . . . . . . . 2 4 Heat Flow Errors 6 | . . . . . . . . . 6 Energy Discharges 1 | . . . . . . . . . 1 Parts Rejected 1 | . . . . . . . . . 1 Data Loss (minor) 5 | . . . . . . . 1 . 4 Data Loss (major) 2 | . . . . . . . . . 2 Alerts 1 | . . . . . . . . . 1 Weapon Failures 2 | . . . . . . . . . 2 Overload Shots . | . . . . . . . . . . Overflow Damage 140 | . . . 8 . . 17 . . 115 Projectiles 24 | . . . . . . . . . 24 Explosions 112 | . . . 8 . . 13 . . 91 Melee 4 | . . . . . . 4 . . . Knockbacks 7 | . . . . . . 1 . . 6 Impact 1 | . . . . . . 1 . . . Kinetic 6 | . . . . . . . . . 6 Secondary . | . . . . . . . . . . Self-Inflicted Damage 289 | . . . 36 . . 94 . . 159 Shots 5 | . . . 1 . . 2 . . 2 Rammed 1 | . . . . . . . . . 1 Targets Rammed 11 | . . . . . . 6 4 . 1 Kicked 10 | . . . . . . 6 4 . . Crushed . | . . . . . . . . . . Highest Temperature 890 | . . . 37 . 210 246 384 337 890 Average Temperature 176 | . . . 15 . 66 81 87 117 283 Received Heat Transfer 903 | . . . 57 . 171 177 156 51 291 Effects 59 | . . . . . . . . . 59 Shutdowns 14 | . . . . . . . . . 14 Energy Bleed 6 | . . . . . . . . . 6 Interference 10 | . . . . . . . . . 10 Matter Decay 4 | . . . . . . . . . 4 Short Circuit 7 | . . . . . . . . . 7 Damage (minor) 6 | . . . . . . . . . 6 Damage (major) 10 | . . . . . . . . . 10 Damage (core) 2 | . . . . . . . . . 2 Siege Activations . | . . . . . . . . . . Robots Corrupted . | . . . . . . . . . . Combat Hostiles . | . . . . . . . . . . Parts Fried . | . . . . . . . . . . Impact Corruptions 1 | . . . . . . 1 . . . Robots Melted 2 | . . . . . . 1 . 1 . Combat Hostiles 1 | . . . . . . 1 . . . Parts Melted 10 | . . . . . 1 1 5 1 2 Heat Transferred 2957 | . . . 150 . . 259 777 666 1105 Parts Sabotaged . | . . . . . . . . . . Parts Stolen . | . . . . . . . . . . Parts Stripped . | . . . . . . . . . . Power Chain Reactions 2 | . . . 1 . . . . . 1 Alert | -11 -10 -10 -9 -9 -8 -7 -6 -6 -6 ------- Run | Yrd Mat Min Mat Min Mat Fac Fac Gar Fac Peak Influence 638 | . . . 245 220 263 526 461 597 638 Initial 312 | . . . . 95 7 18 241 216 312 Average 287 | . . . 182 179 92 194 304 375 492 Maximum Alert Level 2 | . . . 1 1 1 2 2 2 2 Low Security (%) 33 | 100 100 100 32 48 86 63 . . . Level 1 33 | . . . 67 51 13 10 88 56 23 Level 2 33 | . . . . . . 26 11 43 76 Level 3 . | . . . . . . . . . . Level 4 . | . . . . . . . . . . Level 5 . | . . . . . . . . . . High Security . | . . . . . . . . . . Max Security . | . . . . . . . . . . Squads Dispatched 12 | . . . 2 1 1 3 2 . 3 Investigation 4 | . . . 2 1 . 1 . . . Extermination 4 | . . . . . . 1 1 . 2 Reinforcement 3 | . . . . . . 1 1 . 1 Assault . | . . . . . . . . . . Garrison 1 | . . . . . 1 . . . . Intercept . | . . . . . . . . . . Searches Triggered . | . . . . . . . . . . Construction Impeded . | . . . . . . . . . . Haulers Reinforced . | . . . . . . . . . . Active Scanning Responses . | . . . . . . . . . . Cargo Convoy Interrupts . | . . . . . . . . . . Stealth | -11 -10 -10 -9 -9 -8 -7 -6 -6 -6 --------- Run | Yrd Mat Min Mat Min Mat Fac Fac Gar Fac Distress Signals 8 | . . . 1 . 2 4 1 . . Communications Jammed . | . . . . . . . . . . Distress Signals . | . . . . . . . . . . Times Spotted 118 | . 1 . 12 6 23 28 14 14 20 Peak Tracking Total 8 | . 1 . 5 3 8 5 4 7 5 Tactical Retreats 12 | . . . 1 1 . 3 3 4 . Traps | -11 -10 -10 -9 -9 -8 -7 -6 -6 -6 ------- Run | Yrd Mat Min Mat Min Mat Fac Fac Gar Fac Traps Triggered . | . . . . . . . . . . Indirectly . | . . . . . . . . . . Trap Hack Attempts . | . . . . . . . . . . Triggered . | . . . . . . . . . . Disarmed . | . . . . . . . . . . Reprogrammed . | . . . . . . . . . . Reused . | . . . . . . . . . . Traps Extracted . | . . . . . . . . . . Installed . | . . . . . . . . . . Triggered . | . . . . . . . . . . Machines | -11 -10 -10 -9 -9 -8 -7 -6 -6 -6 ---------- Run | Yrd Mat Min Mat Min Mat Fac Fac Gar Fac Machines Disabled 30 | . . . . . . 8 1 1 20 Max in Single Turn 6 | . . . . . . 6 1 . 4 Garrison Relay 1 | . . . . . . . . 1 . Phase Generator 1 | . . . . . . . . 1 . Machines Repaired . | . . . . . . . . . . Machines Dismantled . | . . . . . . . . . . Machines Sabotaged . | . . . . . . . . . . Overloaded Fab Kills . | . . . . . . . . . . Hacking | -11 -10 -10 -9 -9 -8 -7 -6 -6 -6 --------- Run | Yrd Mat Min Mat Min Mat Fac Fac Gar Fac Machines Accessed 19 | . 1 . 1 1 2 7 2 . 5 Terminals 10 | . 1 . 1 . 1 4 1 . 2 Fabricators 2 | . . . . . . 1 . . 1 Repair Stations 3 | . . . . . . 2 . . 1 Recycling Units 1 | . . . . . 1 . . . . Scanalyzers . | . . . . . . . . . . Garrison Access 2 | . . . . . . . 1 . 1 Total Hacks 41 | . 1 . 3 1 5 20 3 . 8 Successful 19 | . . . . 1 1 10 2 . 5 Failed 22 | . 1 . 3 . 4 10 1 . 3 Catastrophic 7 | . 1 . 2 . 1 2 . . 1 Database Lockouts . | . . . . . . . . . . Manual 4 | . . . . . . 2 . . 2 Terminals 21 | . 1 . 3 . 3 9 2 . 3 Fabricators 4 | . . . . . . 3 . . 1 Repair Stations 11 | . . . . . . 8 . . 3 Recycling Units 2 | . . . . . 2 . . . . Scanalyzers . | . . . . . . . . . . Garrison Access 2 | . . . . . . . 1 . 1 Terminal Hacks 7 | . . . . 1 . 3 1 . 2 Record 1 | . . . . . . . 1 . . Open Door 1 | . . . . 1 . . . . . Open DSF 3 | . . . . . . 2 . . 1 Branch Access Points 1 | . . . . . . 1 . . . Recall Reinforcements 1 | . . . . . . . . . 1 Fabricator Hacks 3 | . . . . . . 2 . . 1 Network Status 2 | . . . . . . 1 . . 1 Build 1 | . . . . . . 1 . . . Repair Station Hacks 7 | . . . . . . 5 . . 2 Scan Component 5 | . . . . . . 4 . . 1 Repair 2 | . . . . . . 1 . . 1 Recycling Unit Hacks 1 | . . . . . 1 . . . . Report Inventory 1 | . . . . . 1 . . . . Scanalyzer . | . . . . . . . . . . Garrison Access Hacks 1 | . . . . . . . 1 . . Unlock Access 1 | . . . . . . . 1 . . Unauthorized Hacks . | . . . . . . . . . . Terminals . | . . . . . . . . . . Fabricators . | . . . . . . . . . . Repair Stations . | . . . . . . . . . . Recycling Units . | . . . . . . . . . . Scanalyzers . | . . . . . . . . . . Garrison Access . | . . . . . . . . . . Data Cores Recovered . | . . . . . . . . . . Used . | . . . . . . . . . . Hacking Detections 10 | . 1 . 1 . 1 5 1 . 1 Full Trace Events 2 | . . . 1 . . 1 . . . Feedback Events . | . . . . . . . . . . Feedback Blocked . | . . . . . . . . . . Robot Schematics Acquired . | . . . . . . . . . . Robots Built . | . . . . . . . . . . Authchips . | . . . . . . . . . . Time . | . . . . . . . . . . Total Robot Build Rating . | . . . . . . . . . . Part Schematics Acquired . | . . . . . . . . . . Parts Built 2 | . . . . . . 2 . . . Authchips . | . . . . . . . . . . Time 106 | . . . . . . 106 . . . Total Part Build Rating 12 | . . . . . . 12 . . . Parts Repaired 2 | . . . . . . 1 . . 1 Time 100 | . . . . . . 44 . . 56 Parts Recycled . | . . . . . . . . . . Recycled Matter . | . . . . . . . . . . Retrieved Matter . | . . . . . . . . . . Retrieved Components . | . . . . . . . . . . Parts Scanalyzed . | . . . . . . . . . . Part Schematics Acquired . | . . . . . . . . . . Parts Damaged . | . . . . . . . . . . Bothacking | -11 -10 -10 -9 -9 -8 -7 -6 -6 -6 ------------ Run | Yrd Mat Min Mat Min Mat Fac Fac Gar Fac Used RIF Installer . | . . . . . . . . . . Robots Hacked . | . . . . . . . . . . Non-combat . | . . . . . . . . . . Combat . | . . . . . . . . . . Robot Hacks Applied . | . . . . . . . . . . Relay Couplers Released 4 | . . . . . . . . 4 . Machine Destruction 4 | . . . . . . . . 4 . Fabnet Peak Effective % . | . . . . . . . . . . Robots Rewired . | . . . . . . . . . . Allies Hacked . | . . . . . . . . . . Hacks Repelled . | . . . . . . . . . . Allies | -11 -10 -10 -9 -9 -8 -7 -6 -6 -6 -------- Run | Yrd Mat Min Mat Min Mat Fac Fac Gar Fac Total Allies 4 | . . 2 . . . . . 2 . Largest Group 2 | . . 2 2 . . . . 2 . Highest-Rated Group 157 | . . 42 42 . . . . 157 . Highest-Rated Ally 95 | . . 31 31 . . . . 95 . Total Orders . | . . . . . . . . . . Ally Attacks 30 | . . . 10 . . . . 20 . Total Damage 1421 | . . . 108 . . . . 1313 . Kills 9 | . . . 2 . . . . 7 . Allies Corrupted . | . . . . . . . . . . Allies Melted . | . . . . . . . . . . Intel | -11 -10 -10 -9 -9 -8 -7 -6 -6 -6 ------- Run | Yrd Mat Min Mat Min Mat Fac Fac Gar Fac Robot Analysis Total . | . . . . . . . . . . Derelict Logs Recovered 2 | . . 1 . 1 . . . . . Drone Launches . | . . . . . . . . . . Drone Recoveries . | . . . . . . . . . . Exploration | -11 -10 -10 -9 -9 -8 -7 -6 -6 -6 ------------- Run | Yrd Mat Min Mat Min Mat Fac Fac Gar Fac Turns Passed 5202 | 82 182 210 316 434 412 944 627 306 1689 Spaces Moved 2662 | 48 109 131 164 242 246 637 348 197 540 Core 10 | 10 . . . . . . . . . Treads 1037 | 38 109 131 164 242 39 . . . 314 Legs 1615 | . . . . . 207 637 348 197 226 Wheels . | . . . . . . . . . . Hover . | . . . . . . . . . . Flight . | . . . . . . . . . . Fastest Speed 50 | 50 160 160 160 160 120 120 122 127 122 Average Speed 160 | 144 160 160 160 160 127 121 132 127 251 Slowest Speed 470 | 160 160 160 160 160 260 123 195 127 470 Overloaded Moves . | . . . . . . . . . . Propulsion Burnouts . | . . . . . . . . . . Robots Hopped . | . . . . . . . . . . Cave-ins Triggered . | . . . . . . . . . . Exploration Rate (%) 29 | 4 25 35 17 78 30 21 11 51 20 Regions Visited 9 Branch Regions 2 Pre-discovered Areas 1 | . . . . 1 . . . . . Known Exits Taken 1 | . . . . . . . 1 . . Unknown Exits Taken 7 | 1 1 1 1 1 1 1 . . . Scrap Searched 1 | . . . . 1 . . . . . Spaces Dug 8 | . . . . . 3 5 . . . Terrain Destroyed 220 | . . . 3 . 3 84 7 . 123 Melee . | . . . . . . . . . . Projectile 34 | . . . . . 3 . 7 . 24 AOE 186 | . . . 3 . . 84 . . 99 Terrain Rammed . | . . . . . . . . . . Walls Destroyed . | . . . . . . . . . . Machines Disabled . | . . . . . . . . . . Actions | -11 -10 -10 -9 -9 -8 -7 -6 -6 -6 --------- Run | Yrd Mat Min Mat Min Mat Fac Fac Gar Fac Total 3285 | 57 116 132 188 265 301 767 450 228 781 Wait 276 | . . 2 3 2 6 79 34 6 144 Move 2653 | 47 108 130 163 241 245 636 347 196 540 Hop . | . . . . . . . . . . Pick Up 44 | 3 3 . 4 4 9 6 3 4 8 Fast Attach 31 | 6 1 . 1 . 4 3 5 . 11 Attach 20 | . . . . . 2 4 6 . 8 Detach 7 | . . . . . 1 1 . . 5 Swap 30 | 1 2 . 1 2 3 6 10 . 5 Drop 43 | . 2 . . 2 10 8 6 4 11 Fire 165 | . . . 16 14 21 18 35 13 48 Melee . | . . . . . . . . . . Ram . | . . . . . . . . . . Kick 10 | . . . . . . 6 4 . . Crush 1 | . . . . . . . . . 1 Escape Stasis . | . . . . . . . . . . Rewire 5 | . . . . . . . . 5 . Trap . | . . . . . . . . . . Miscellaneous . | . . . . . . . . . . Route ------- -11/Scrapyard -10/Materials -10/Mines -9/Materials -9/Mines (discovered 2 exits: *Mat x2) -8/Materials -7/Factory (discovered 3 exits: *Fac / Low x2) -6/Factory -6/Garrison -6/Factory History --------- Turn | Location | Event 13 | -11/Scrapyard | Discovered new exit (range 15) 83 | -11/Scrapyard | Entered Materials 217 | -10/Materials | Discovered new exit (range 16) 265 | -10/Materials | Entered Mines 314 | -10/Mines | Build established: Mutant 432 | -10/Mines | Learned Materials stockpile data 446 | -10/Mines | Discovered new exit (range 12) 475 | -10/Mines | Entered Materials 475 | -9/Materials | Accompanied by 2 allies 475 | -9/Materials | Evolved 2 slots: Propulsion x1, Utility x1 480 | -9/Materials | Led the pair of lost Derelicts to an unsafe place 691 | -9/Materials | Discovered new exit (range 18) 791 | -9/Materials | Entered Mines 996 | -9/Mines | Learned location of Storage (-9) 1044 | -9/Mines | Met a Derelict shopkeep closing up shop 1179 | -9/Mines | Discovered new exit (range 7) 1206 | -9/Mines | Learned Materials terminal intel 1214 | -9/Mines | Discovered new exit (range 8) 1225 | -9/Mines | Entered Materials 1225 | -8/Materials | Evolved 2 slots: Utility x1, Weapon x1 1226 | -8/Materials | Loaded intel: 12 terminal locations 1581 | -8/Materials | Garrison activated, responded to threat 1597 | -8/Materials | Build established: Skirmisher 1626 | -8/Materials | Discovered new exit (range 10) 1637 | -8/Materials | Entered Factory 1637 | -7/Factory | Evolved 2 slots: Propulsion x1, Utility x1 1888 | -7/Factory | Fabricated Imp. Thermal Shield? 2036 | -7/Factory | Repaired Imp. Carbon-fiber Leg 2268 | -7/Factory | Identified exit to Lower Caves 2560 | -7/Factory | Discovered new exit (range 17) 2581 | -7/Factory | Entered another Factory area 2581 | -6/Factory | Evolved 2 slots: Power x1, Weapon x1 2765 | -6/Factory | Lost 5 parts (1n1u3w) 2909 | -6/Factory | Spotted B-75 Beast 3153 | -6/Factory | Build established: Scavenger-Skirmisher 3188 | -6/Factory | Identified exit to Garrison 3208 | -6/Factory | Entered Garrison 3218 | -6/Garrison | Phase Generator disabled 3225 | -6/Garrison | Found embedded Infiltrators 3232 | -6/Garrison | Met a derelict Sapper fleeing the area 3256 | -6/Garrison | Triggered checkpoint 3266 | -6/Garrison | Triggered checkpoint 3269 | -6/Garrison | Triggered checkpoint 3348 | -6/Garrison | Spotted B-75 Beast 3466 | -6/Garrison | Triggered checkpoint 3471 | -6/Garrison | Build established: Scavenger-Tank 3505 | -6/Garrison | Discovered new exit (range 8) 3514 | -6/Garrison | Entered Factory 3742 | -6/Factory | Core integrity fell below 50% 3809 | -6/Factory | Lost 8 parts (2p2u4w) 4155 | -6/Factory | Build established: Gunner 4581 | -6/Factory | Core integrity fell below 20% 4871 | -6/Factory | Repaired Enh. Gauss Cannon 5203 | -6/Factory | Destroyed by L-41 Fighter with Axe Last Messages --------------- System corrupted: Matter fused (-10). Dropped Broken Hvy. Plasma Cannon. Acquired Flak Gun. U-05 Engineer builds a Wall. System corrupted: Heat flow error (+250). Connecting with Garrison Access... System corrupted: Heat flow error (+112). Lgt. Treads destroyed. Shock Rifle destroyed. K-01 Serf cleans the Fabricator. Slug penetrates G-50 Soldier. G-50 Soldier Carbon-fiber Leg blasted off. Enh. Gauss Cannon severed. G-50 Soldier destroyed. Critical hit (Burn: +37). K-01 Serf collects debris. Imp. Deuterium Engine destroyed. Fabricator disabled. K-01 Serf collects debris. K-01 Serf cleans the Neutrino Reactor. Map ----- +----------------------------------------------------+ | ?????????????????????????????????????????????????? | | ?????????????????????????????????????????????????? | | ?????????????????????????????????????????????????? | | ?????????????????????????????????????????????????? | | ?????????????????????????????????????????????????? | | ?????????????????????????????????????????????????? | | ?????????????????????????????????????????????????? | | ?????????????????????????????????????????????????? | | ?????????????????????????????????????????????????? | | ?????????????????????????????????????????????????? | | ?????????????????????????????????????????????????? | | ?????????????????????????????????????????????????? | | ??????????????????????????? ? #??????????????????? | | ??????????????????????????? ? #??????????????????? | | ??????????????????????????? #??????????????????? | | ??????????????????????????? #??????????????????? | | ??????????????????????????? ??????????????????? | | ??????????????????????????? ??????????????????? | | ??????????????????????????? T ???????????????????? | | ??????????????????????????? ???????????????????? | | ??????????????????????????? ???????????????????? | | ???????????????????????????# #???????????????????? | | ???????????????????????????# ###??????????? ?????? | | ???????????################# # #?????????? #?????? | | ???????? k k gg=%#?????????? #?????? | | ???????? @l% #??????????? +??? ?? | | ???????? """ %#?????????? #? ""?? | | ???????? k ""F"gk#?????????? # ""?? | | ??????????" """ """ "" #????????? / ???? | | ??????????????? """ ########## #?????? | | ????????????????""" #####+# | | ???????????? | | ??????????? | | ???????????? ####### | | ????????????################?????# | | ?????????????????????????????????# | | ?????????????????????????????????# | | ???????????????##############????# | | ???????????????# # #????# | | ???????????????# """ # ###### | | ???????????????# "G" + ###+# | | ?????#######???# " " # ###### # ??? | | ?????# [ ??# # #????# #???? | | ?????# ??# #######????## #???? | | ?????# ?#+##+###?########### #???? | | ?????# ?# #???# # #???? | | ?????# # #???# """ # #???? | | ?????# # ##### "R" # #???? | | ?????# + ## " " # #???? | | ?????# # ### ## # #???? | +----------------------------------------------------+ Best States ------------- Heat Dissipation 51 Energy Generation 29 Energy Capacity 480 Matter Stores 300 Matter Capacity 300 Sight Range 22 Robot Scan Range 15 Terrain Scan Range 16 Terrain Scan Density 10 Armor Coverage 225 Resistance: KI 30 Evasion (%) 55 Targeting Accuracy 8 Recoil Reduction 4 Item Schematics ----------------- None Robot Schematics ------------------ None Fabricated ------------ Imp. Thermal Shield | x2 | -7/Factory | Preloaded Alien Tech Used ----------------- None Achievements -------------- Backstab Challenges ------------ None Game ------ Seed TrapChipPendant Manual? 0 Play Time 01:12:58 Cumulative 18.8 hours Start 2024.06.10 @ 10:10:18 End 2024.06.10 @ 12:33:19 Sessions 1 Manual Loads 0 Difficulty Rogue Special Mode None Game No. 22 Rogue 22 Adventurer 0 Explorer 0 Win Type - Total 0 Types 0/0/0/0/0/0/0/0/0 Lore% 16 Gallery% 23 Achievement% 19 Wizard Run 0 Options --------- Layout 0 ASCII 0 Keyboard 1 Movement Arrows Keybinds 0 Fullscreen 2 Font 24/Terminus Map View 76x50 Zoom Use 0% Tactical HUD 0 Map Filters NONE Filters NONE Steam 0 RUN: 68d864b9-f4af-4a11-a46f-0165ec83c885